fUSD/lending_fUSD_20240607
["ID","MTS","AMOUNT","RATE_DAILY","PERIOD"]
[328798633,1717800641481,-156.77982863,0.00028403,2]
[328798634,1717800641491,-164.43063993,0.00028408,2]
[328798635,1717800641502,-156.77982863,0.00028428,2]
[328798636,1717800641513,-156.77982863,0.00028438,2]
[328798637,1717800641523,-170.69196785,0.00028471,2]
[328798638,1717800641533,-164.06121976,0.00028499,2]
[328798639,1717800641543,-156.77982863,0.00028508,2]
[328798640,1717800641553,-154.58253667,0.00028519,2]
[328798641,1717800641567,-455.46570268,0.0002859,2]
[328798642,1717800641749,-536.04114312,0.0002859,2]
[328798643,1717800641844,-500.09,0.0002859,2]
[328798644,1717800641858,-3490.4631542,0.0002859,2]
[328798645,1717800641869,-403.67224275,0.00028666,2]
[328798646,1717800641880,-154.58253667,0.00028745,2]
[328798647,1717800641890,-156.77982863,0.00028757,2]
[328798648,1717800641900,-4879.25,0.00028834,2]
[328798649,1717800641911,-156.01269146,0.00028838,2]
[328798650,1717800641921,-4884.08,0.00028875,2]
[328798651,1717800641931,-154.58253667,0.00028884,2]
[328798652,1717800641941,-4844.62,0.00028905,2]
[328798653,1717800641951,-1001.1231527,0.00029,2]
[328798654,1717800641961,-500.0,0.00029015,2]
[328798655,1717800641971,-200.0,0.00029015,2]
[328798656,1717800641981,-154.58253667,0.00029027,2]
[328798657,1717800641992,-1718.20009011,0.00029105,4]
[328798658,1717800642003,-1994.18032,0.0002911,2]
[328798659,1717800642013,-166.2789338,0.000292,15]
[328798660,1717800642024,-156.77982863,0.00029251,2]
[328798661,1717800642035,-241.1796,0.00029289,2]
[328798662,1717800642045,-8550.86017127,0.000293,2]
[328798663,1717800642058,-1013.22885838,0.000293,2]
[328798664,1717800642070,-16699.05783654,0.000293,2]
[328798665,1717800642082,-3107.12544579,0.000293,2]
[328798666,1717800642094,-1022.04087,0.000293,2]
[328798667,1717800642106,-321.38047089,0.000293,2]
[328798668,1717800642118,-586.80049511,0.000293,2]
[328798669,1717800642132,-409.45999997,0.000293,2]
[328798670,1717800642143,-5953.87956985,0.000293,2]
[328798671,1717800642155,-775.77409809,0.000293,2]
[328798672,1717800642212,150.0,0.00024937,2]
[328798673,1717800642267,-7849.97467302,0.000293,2]
[328798675,1717800643442,-10454.55,0.000293,2]
[328798677,1717800643454,-1745.58285209,0.000293,2]
[328798686,1717800643989,-8006.82744837,0.000293,2]
[328798696,1717800646412,-2085.163727,0.000293,2]
[328798697,1717800646424,-16562.92318363,0.000293,2]
[328798698,1717800646433,-7500.0,0.000293,2]
[328798699,1717800646443,-150.0,0.000293,6]
[328798700,1717800646452,-150.0,0.000293,6]
[328798701,1717800646462,-317.75565528,0.000293,2]
[328798702,1717800646472,-166.27893376,0.00029375,15]
[328798703,1717800646481,-1000.0,0.00029388,2]
[328798704,1717800646491,-171.84,0.0002939,2]
[328798705,1717800646501,-18482.73140255,0.00029397,2]
[328798706,1717800646514,-5018.53305676,0.00029397,2]
[328798707,1717800646578,-64298.27688989,0.00029397,2]
[328798708,1717800646588,-10185.4288273,0.00029397,2]
[328798709,1717800646598,-5715.53422173,0.000294,6]
[328798710,1717800646639,150.0,0.00024937,2]
[328798711,1717800646894,-1038.84,0.000294,6]
[328798712,1717800658768,760.83248312,0.00025407,2]
[328798713,1717800663676,2193.53962537,0.00017259,2]
[328798714,1717800674136,176.41950673,0.00017259,2]
[328798715,1717800683714,2552.12894967,0.00012944,2]
[328798716,1717800690372,3081.16506262,0.00017259,2]
[328798717,1717800690523,224.0,0.000244,2]
[328798719,1717800709610,195.68427479,0.00017259,2]
[328798721,1717800712153,879.5689188,0.00017259,2]
[328798723,1717800751036,-201.57961596,0.00017259,2]
[328798725,1717800767142,268.60222202,0.00017259,2]
[328798728,1717800822581,1529.81816202,0.00017259,2]
[328798735,1717801138129,173.87774931,0.0003,40]
[328798737,1717801306641,-226.6238354,0.000201,2]
[328798738,1717801306664,-1944.0,0.000224,2]
[328798739,1717801306687,-750.0,0.000224,2]
[328798740,1717801306711,-281.34,0.00024384,2]
[328798741,1717801306733,-354.0,0.000249,2]
[328798742,1717801306756,-38034.0,0.00024937,2]
[328798743,1717801306781,-278.37,0.00024937,2]
[328798744,1717801306806,-381.34,0.00025764,2]
[328798745,1717801306830,-218.87291683,0.00026576,2]
[328798746,1717801306855,-499.99,0.00026576,2]
[328798747,1717801306878,-500.0,0.00026737,2]
[328798748,1717801306902,-155.10905589,0.00026851,2]
[328798749,1717801306925,-151.83986406,0.00026915,2]
[328798750,1717801306948,-176.80540713,0.00027035,2]
[328798751,1717801306971,-165.9694767,0.00027092,2]
[328798752,1717801306995,-154.41987409,0.00027112,2]
[328798753,1717801307019,-152.0,0.00027161,3]
[328798754,1717801307042,-2011.37343874,0.000272,2]
[328798755,1717801307066,-303.66,0.00027372,2]
[328798756,1717801307088,-250.0,0.00027395,2]
[328798757,1717801307109,-781.5,0.000274,2]
[328798758,1717801307130,-250.0,0.0002741,2]
[328798759,1717801307152,-711.55,0.00027514,2]
[328798760,1717801307174,-151.87895177,0.0002756,2]
[328798761,1717801307197,-165.67,0.00027579,2]
[328798762,1717801307219,-150.91,0.00027579,2]
[328798763,1717801307241,-150.91,0.0002759,2]
[328798764,1717801307265,-150.91,0.000276,2]
[328798765,1717801307287,-1000.0,0.00027605,2]
[328798766,1717801307310,-150.91,0.00027611,2]
[328798767,1717801307332,-155.10905589,0.00027619,2]
[328798768,1717801307355,-150.91,0.00027621,2]
[328798769,1717801307377,-150.91,0.00027632,2]
[328798770,1717801307400,-150.91,0.00027643,2]
[328798771,1717801307423,-150.91,0.00027653,2]
[328798772,1717801307446,-150.91,0.00027664,2]
[328798773,1717801307468,-150.91,0.00027674,2]
[328798774,1717801307489,-164.43063993,0.00027678,2]
[328798775,1717801307512,-150.91,0.00027685,2]
[328798776,1717801307534,-150.91,0.00027696,2]
[328798777,1717801307557,-150.91,0.00027706,2]
[328798778,1717801307580,-150.91,0.00027717,2]
[328798779,1717801307602,-153.85,0.00027749,2]
[328798780,1717801307623,-224.77957444,0.00028,2]
[328798781,1717801307645,-381.34,0.00028028,2]
[328798782,1717801307668,-154.41987409,0.00028251,2]
[328798783,1717801307690,-205.54,0.00028326,2]
[328798784,1717801307711,-224.0,0.000284,2]
[328798785,1717801307735,-155.16234963,0.00028452,2]
[328798786,1717801307760,-151.87895177,0.00028618,2]
[328798787,1717801307784,-155.16234964,0.00028627,2]
[328798788,1717801307807,-151.87895177,0.00028727,2]
[328798789,1717801307829,-151.83986406,0.00028752,2]
[328798790,1717801307857,-151.87895177,0.00028765,2]
[328798791,1717801307879,-153.05703102,0.00028847,2]
[328798792,1717801307902,-154.41987409,0.00028894,2]
[328798793,1717801307928,-154.41987409,0.00028955,2]
[328798794,1717801320835,226.6238354,0.00022395,2]
[328798795,1717801327346,713.88392726,0.00029,2]
[328798796,1717801337601,154.41987409,0.00027101,2]
[328798797,1717801337842,154.38117907,0.00028627,2]
[328798798,1717801338097,154.41987409,0.00027347,2]
[328798799,1717801339924,1579.72203111,0.00028367,2]
[328798800,1717801339999,154.41987409,0.00027369,2]
[328798801,1717801340026,150.69163364,0.00027429,2]
[328798802,1717801342830,226.6238354,0.00022395,2]
[328798803,1717801345475,151.87895177,0.00026834,2]
[328798804,1717801345952,151.87895177,0.0002704,2]
[328798805,1717801346377,160.12947665,0.00027546,2]
[328798806,1717801346447,151.87895177,0.00027935,2]
[328798807,1717801346873,166.49833665,0.00028671,2]
[328798808,1717801346905,160.12947666,0.00028418,2]
[328798809,1717801347058,151.87895177,0.0002815,2]
[328798810,1717801347091,164.43063994,0.00027052,2]
[328798811,1717801347544,151.87895177,0.00028355,2]
[328798812,1717801348085,151.87895177,0.00028443,2]
[328798813,1717801348605,151.87895177,0.00028576,2]
[328798814,1717801348723,157.84633629,0.00028163,2]
[328798815,1717801350478,155.13332266,0.0002832,2]
[328798816,1717801350671,155.10905591,0.00027369,2]
[328798817,1717801356828,226.6238354,0.00022396,2]
[328798818,1717801357147,224.77957444,0.00028,2]
[328798819,1717801362097,200.0,0.00028398,2]
[328798820,1717801367642,1387.21334185,0.00019451,2]
[328798821,1717801378831,226.6238354,0.00022396,2]
[328798822,1717801381153,224.77957444,0.00028,2]
[328798823,1717801392005,1351.15,0.00028626,2]
[328798824,1717801397159,224.77957444,0.00028,2]
[328798825,1717801399714,226.6238354,0.00022396,2]
[328798826,1717801401964,354.0,0.000284,2]
[328798827,1717801449375,-226.6238354,0.00022396,2]
[328798828,1717801449399,-224.77957444,0.00028,2]
[328798829,1717801449423,-500.0,0.00029064,2]
[328798830,1717801449445,-200.0,0.00029064,2]
[328798831,1717801449468,-150.0,0.000291,2]
[328798832,1717801449490,-1803.96714,0.000291,2]
[328798833,1717801449514,-419.50757395,0.00029104,2]
[328798834,1717801449536,-1974.02114576,0.00029105,4]
[328798835,1717801449562,-150.0,0.00029206,2]
[328798836,1717801449585,-873.01,0.00029261,2]
[328798837,1717801449609,-417.15,0.00029261,2]
[328798838,1717801449631,-873.01,0.00029261,2]
[328798839,1717801449653,-417.15,0.00029261,2]
[328798840,1717801449675,-417.15,0.00029261,2]
[328798841,1717801449696,-873.01,0.00029261,2]
[328798842,1717801449718,-873.01,0.00029261,2]
[328798843,1717801449740,-417.15,0.00029261,2]
[328798844,1717801449763,-873.01,0.00029261,2]
[328798845,1717801449786,-417.15,0.00029261,2]
[328798846,1717801449812,-873.01,0.00029261,2]
[328798847,1717801449835,-417.15,0.00029261,2]
[328798848,1717801449860,-417.15,0.00029261,2]
[328798849,1717801449885,-873.01,0.00029261,2]
[328798850,1717801449910,-866.75,0.00029261,2]
[328798851,1717801449934,-417.15,0.00029261,2]
[328798852,1717801449960,-151.87895177,0.00029276,2]
[328798853,1717801449984,-13061.5325,0.00029297,2]
[328798854,1717801450005,-2443.1549,0.000293,2]
[328798855,1717801450028,-150.0,0.000293,6]
[328798856,1717801450052,-150.0,0.000293,6]
[328798857,1717801450079,-166.27893376,0.000293,15]
[328798858,1717801450103,-150.69163364,0.00029342,2]
[328798859,1717801450128,-154.41987413,0.00029369,2]
[328798860,1717801450152,-166.49833666,0.00029389,2]
[328798861,1717801450174,-3264.5613468,0.00029397,2]
[328798862,1717801450199,-31879.85514822,0.00029397,2]
[328798863,1717801520794,545.55511165,0.00017259,2]
[328798864,1717801553147,688.42270304,0.00017259,2]
[328798869,1717801637168,-343.2,0.00026648,2]
[328798870,1717801637194,-781.5,0.000274,2]
[328798871,1717801637221,-224.77957444,0.00028,2]
[328798872,1717801637246,-224.0,0.000284,2]
[328798873,1717801637270,-474.03,0.00028512,2]
[328798874,1717801637300,-2611.20547856,0.00028809,2]
[328798875,1717801637326,-343.2,0.00028912,2]
[328798876,1717801637351,-987.01057288,0.00029105,4]
[328798877,1717801637376,-417.15,0.00029261,2]
[328798878,1717801637400,-317.75565528,0.000293,2]
[328798879,1717801637424,-3021.57044068,0.00029397,2]
[328798884,1717801820490,226.6238354,0.000201,2]
[328798885,1717801832505,-151.87895178,0.0002738,2]
[328798887,1717801832515,-132.28351322,0.00027999,2]
[328798889,1717801832528,-649.21648678,0.00027999,2]
[328798891,1717801832538,-224.77957444,0.00028,2]
[328798894,1717801832547,-161.12785512,0.00028166,2]
[328798897,1717801832557,-354.0,0.000284,2]
[328798900,1717801832566,-250.0,0.00028557,2]
[328798903,1717801832575,-493.50528644,0.00029105,4]
[328798904,1717801832585,-166.27893376,0.00029297,15]
[328798905,1717801832603,-459.59723427,0.000293,2]
[328798906,1717801832614,-150.0,0.000293,6]
[328798907,1717801832625,-150.0,0.000293,6]
[328798908,1717801832635,-459.59723421,0.00029386,2]
[328798909,1717801832645,-7500.0,0.00029389,2]
[328798910,1717801832656,-3993.03815498,0.00029397,2]
[328798911,1717801832669,-362.84660977,0.00029397,2]
[328798912,1717801832877,-510.3000105,0.00029397,2]
[328798913,1717801832890,-599.89049949,0.00029397,2]
[328798914,1717801832902,-689.93,0.00029397,2]
[328798915,1717801832917,-303.8,0.00029397,2]
[328798916,1717801832929,-2230.09129872,0.00029397,2]
[328798937,1717801837902,226.6238354,0.00022396,2]
[328798938,1717801838262,-965.1429323,0.00029397,2]
[328798940,1717801838773,-751.74894138,0.00029397,2]
[328798941,1717801838785,-795.2682055,0.00029397,2]
[328798942,1717801838797,-1007.38297438,0.00029397,2]
[328798943,1717801838808,-347.615,0.00029397,2]
[328798944,1717801840776,-284.51111494,0.00029397,2]
[328798945,1717801840788,-10816.66281497,0.00029397,2]
[328798946,1717801840799,-633.84,0.00029397,2]
[328798947,1717801840812,-1575.69909023,0.00029397,2]
[328798951,1717801841213,-389.88239469,0.00029397,2]
[328798955,1717801841224,-22230.81641486,0.00029397,2]
[328798960,1717801841238,-4572.78453988,0.00029397,2]
[328798963,1717801841249,-10859.41738551,0.00029397,2]
[328798965,1717801841261,-10391.0,0.00029397,2]
[328798967,1717801841274,-55096.80950033,0.00029397,2]
[328798969,1717801841283,-224.5886639,0.00029397,2]
[328798971,1717801841293,-6046.02052773,0.00029397,2]
[328798986,1717801841703,-0.0145,0.00029397,2]
[328798987,1717801841717,-468.67992952,0.00029397,2]
[328798988,1717801841729,-1058.52056441,0.00029397,2]
[328798989,1717801841743,-57.58910754,0.00029397,2]
[328798990,1717801841752,-623.74351878,0.00029397,2]
[328798991,1717801842936,-5.69304703,0.00029397,2]
[328798992,1717801842950,-552.42731244,0.00029397,2]
[328798993,1717801842961,-288.78000099,0.00029397,2]
[328798994,1717801842973,-1550.20437882,0.00029397,2]
[328798995,1717801842988,-500.0,0.00029397,2]
[328798996,1717801843001,-64398.08627274,0.00029397,2]
[328798997,1717801843010,-1390.6580186,0.00029397,2]
[328798998,1717801843021,-998.9974,0.00029399,2]
[328798999,1717801843030,-238631.96557579,0.000294,6]
[328799002,1717801843042,-378.1299995,0.000294,6]
[328799004,1717801843053,-5399.52232776,0.000294,6]
[328799006,1717801843065,-28711.80539203,0.000294,6]
[328799007,1717801843078,-9814.42610411,0.000294,6]
[328799008,1717801843088,-578.77024055,0.000294,2]
[328799009,1717801843097,-345.0,0.000294,2]
[328799010,1717801843107,-160.0,0.000294,2]
[328799011,1717801843116,-150.0,0.000294,18]
[328799012,1717801843125,-150.0,0.000294,2]
[328799013,1717801843135,-565.4234,0.000294,2]
[328799014,1717801843144,-508.8575,0.000294,2]
[328799015,1717801843154,-539.6817,0.000294,2]
[328799016,1717801843163,-2842.8294361,0.00029417,2]
[328799017,1717801843173,-753.57815935,0.00029437,2]
[328799018,1717801843182,-2890.67,0.0002946,15]
[328799019,1717801843192,-2890.67,0.0002946,15]
[328799020,1717801843201,-459.59723421,0.00029471,2]
[328799021,1717801843211,-17314.58969251,0.00029489,2]
[328799022,1717801843220,-21663.56539458,0.000295,14]
[328799023,1717801843232,-682.15741014,0.000295,14]
[328799024,1717801843308,-33352.68981475,0.000295,14]
[328799025,1717801843318,-337.628938,0.000295,2]
[328799026,1717801843327,-410.401315,0.000295,2]
[328799027,1717801843338,-547.201753,0.000295,2]
[328799028,1717801843348,-2110.0,0.000295,15]
[328799029,1717801843361,-1000.0,0.000295,2]
[328799030,1717801843371,-186.96498729,0.000295,3]
[328799031,1717801843381,-151.0,0.000295,7]
[328799032,1717801843390,-151.0,0.000295,7]
[328799033,1717801843402,-151.0,0.000295,7]
[328799034,1717801843412,-151.0,0.000295,7]
[328799037,1717801843422,-153.223918,0.000295,7]
[328799039,1717801843432,-151.0,0.000295,7]
[328799041,1717801843442,-459.59723421,0.00029557,2]
[328799043,1717801843451,-500.0,0.00029589,4]
[328799045,1717801843461,-500.0,0.00029589,4]
[328799046,1717801843471,-500.0,0.00029589,4]
[328799047,1717801843481,-500.0,0.00029589,4]
[328799048,1717801843490,-506.443407,0.000296,2]
[328799049,1717801843500,-615.601972,0.000296,2]
[328799050,1717801843509,-820.80263,0.000296,2]
[328799051,1717801843519,-459.59723421,0.00029643,2]
[328799052,1717801843530,-11658.8388113,0.000297,2]
[328799053,1717801843539,-675.257877,0.000297,2]
[328799054,1717801843548,-4000.0,0.000297,2]
[328799055,1717801843558,-820.80263,0.000297,2]
[328799056,1717801843567,-1094.403507,0.000297,2]
[328799057,1717801843577,-4000.0,0.000297,2]
[328799058,1717801843586,-4000.0,0.000297,2]
[328799059,1717801843596,-4000.0,0.000297,2]
[328799060,1717801843606,-4000.0,0.000297,2]
[328799061,1717801843617,-4000.0,0.000297,2]
[328799062,1717801843626,-459.59723421,0.00029729,2]
[328799063,1717801843636,-150.0,0.0002973,2]
[328799064,1717801843645,-2890.67,0.00029733,15]
[328799065,1717801843655,-2890.67,0.00029733,15]
[328799066,1717801843665,-150.0,0.00029741,2]
[328799067,1717801843674,-150.0,0.00029743,2]
[328799068,1717801843694,-150.0,0.00029752,2]
[328799069,1717801843707,-150.0,0.00029754,2]
[328799070,1717801843717,-150.0,0.00029755,2]
[328799071,1717801843728,-150.0,0.00029757,2]
[328799072,1717801843738,-162.24420407,0.00029761,2]
[328799073,1717801843750,-150.0,0.00029761,2]
[328799074,1717801843761,-1008.7012,0.00029761,2]
[328799075,1717801843774,-1000.0,0.00029761,2]
[328799076,1717801843785,-9047.04675398,0.00029762,2]
[328799077,1717801843797,-151.0,0.00029763,7]
[328799078,1717801843807,-6288.89845075,0.00029763,2]
[328799079,1717801843819,-767.38829802,0.00029763,2]
[328799080,1717801843830,-557.0,0.00029769,5]
[328799081,1717801843841,-151.0,0.00029769,7]
[328799082,1717801843852,-151.0,0.00029769,7]
[328799083,1717801843863,-151.0,0.00029769,7]
[328799084,1717801843872,-151.0,0.00029769,7]
[328799085,1717801843882,-151.0,0.00029769,7]
[328799086,1717801843891,-151.0,0.00029769,7]
[328799087,1717801843901,-151.0,0.00029769,7]
[328799088,1717801843912,-151.0,0.00029769,7]
[328799089,1717801843923,-151.0,0.00029769,7]
[328799090,1717801843934,-151.0,0.00029769,7]
[328799091,1717801843944,-151.0,0.00029769,7]
[328799092,1717801843954,-151.0,0.00029769,7]
[328799093,1717801843965,-151.0,0.00029769,7]
[328799094,1717801843975,-151.0,0.00029769,7]
[328799095,1717801843986,-151.0,0.00029769,7]
[328799096,1717801843999,-171.095771,0.00029769,7]
[328799097,1717801844010,-153.328968,0.00029769,7]
[328799098,1717801844019,-164.999087,0.00029769,7]
[328799099,1717801844028,-151.0,0.00029769,7]
[328799100,1717801844038,-151.0,0.00029769,7]
[328799101,1717801844048,-151.0,0.00029769,7]
[328799102,1717801844057,-151.0,0.00029769,7]
[328799103,1717801844067,-152.046504,0.00029769,7]
[328799104,1717801844076,-151.0,0.00029769,7]
[328799105,1717801844086,-453.18341744,0.00029772,2]
[328799106,1717801844096,-354.73728044,0.00029772,2]
[328799107,1717801844106,-500.0,0.00029772,2]
[328799108,1717801844116,-302.62295757,0.00029772,2]
[328799109,1717801844126,-151.563785,0.00029773,7]
[328799110,1717801844136,-151.0,0.00029773,7]
[328799111,1717801844146,-151.0,0.00029773,7]
[328799112,1717801844156,-3145.035347,0.00029773,7]
[328799113,1717801844166,-151.0,0.00029773,7]
[328799114,1717801844176,-3145.035347,0.00029773,7]
[328799115,1717801844185,-152.173746,0.00029773,7]
[328799116,1717801844195,-151.0,0.00029773,7]
[328799117,1717801844205,-151.0,0.00029773,7]
[328799118,1717801844214,-151.0,0.00029773,7]
[328799119,1717801844224,-181.261286,0.00029773,7]
[328799120,1717801844234,-151.0,0.00029773,7]
[328799121,1717801844243,-151.0,0.00029773,7]
[328799122,1717801844253,-181.261286,0.00029773,7]
[328799123,1717801844264,-151.0,0.00029773,7]
[328799124,1717801844275,-151.0,0.00029774,7]
[328799125,1717801844285,-151.745185,0.00029774,7]
[328799126,1717801844294,-151.0,0.00029774,7]
[328799127,1717801844305,-188.958323,0.00029774,7]
[328799128,1717801844315,-151.861245,0.00029774,7]
[328799129,1717801844324,-154.615473,0.00029774,7]
[328799130,1717801844335,-151.0,0.00029774,7]
[328799131,1717801844345,-151.0,0.00029774,7]
[328799132,1717801844356,-151.0,0.00029774,7]
[328799133,1717801844366,-151.0,0.00029774,7]
[328799134,1717801844376,-151.0,0.00029774,7]
[328799135,1717801844386,-151.0,0.00029774,7]
[328799136,1717801844397,-9047.04675397,0.00029775,2]
[328799137,1717801844407,-151.0,0.00029775,7]
[328799138,1717801844417,-151.0,0.00029775,7]
[328799139,1717801844428,-153.883271,0.00029775,7]
[328799140,1717801844439,-151.0,0.00029775,7]
[328799141,1717801844448,-151.0,0.00029775,7]
[328799142,1717801844458,-151.0,0.00029775,7]
[328799143,1717801844467,-151.0,0.00029775,7]
[328799144,1717801844476,-204.603022,0.00029775,7]
[328799145,1717801844486,-204.603022,0.00029775,7]
[328799146,1717801844495,-151.0,0.00029775,7]
[328799147,1717801844505,-151.0,0.00029775,7]
[328799148,1717801844516,-3821.628975,0.00029775,7]
[328799150,1717801844526,-3821.628975,0.00029775,7]
[328799151,1717801844536,-186.332161,0.00029775,7]
[328799152,1717801844546,-186.332161,0.00029775,7]
[328799153,1717801844555,-151.0,0.00029775,7]
[328799154,1717801844764,-151.0,0.00029775,7]
[328799155,1717801844787,-223.061704,0.00029775,7]
[328799156,1717801844796,-151.0,0.00029775,7]
[328799157,1717801844805,-154.355621,0.00029775,7]
[328799158,1717801844815,-161.58093,0.00029775,7]
[328799159,1717801844825,-161.58093,0.00029775,7]
[328799160,1717801844836,-153.758168,0.00029775,7]
[328799161,1717801844847,-151.0,0.00029775,7]
[328799162,1717801844857,-153.011343,0.00029775,7]
[328799163,1717801844867,-151.0,0.00029775,7]
[328799164,1717801844877,-156.097035,0.00029775,7]
[328799165,1717801844886,-800.0,0.00029784,2]
[328799166,1717801844896,-700.0,0.00029784,2]
[328799167,1717801844906,-162.24420402,0.00029784,2]
[328799168,1717801844921,-151.0,0.00029786,7]
[328799169,1717801844930,-150.0,0.00029786,2]
[328799170,1717801844940,-9047.04675397,0.00029787,2]
[328799171,1717801844951,-150.0,0.00029794,2]
[328799172,1717801844961,-150.0,0.00029794,2]
[328799173,1717801844970,-1322.45265017,0.00029797,2]
[328799174,1717801844980,-9047.04675397,0.000298,2]
[328799175,1717801844991,-844.072346,0.000298,2]
[328799176,1717801845000,-1181.701285,0.000298,2]
[328799177,1717801845009,-1350.515754,0.000298,30]
[328799178,1717801845019,-3364.78020176,0.000298,2]
[328799179,1717801845029,-1026.003287,0.000298,2]
[328799180,1717801845039,-1436.404602,0.000298,2]
[328799181,1717801845049,-1641.60526,0.000298,30]
[328799182,1717801845059,-1368.004383,0.000298,2]
[328799183,1717801845068,-1915.206137,0.000298,2]
[328799184,1717801845077,-2188.807014,0.000298,30]
[328799185,1717801845087,-500.0,0.000298,2]
[328799186,1717801845096,-1007.02,0.000298,2]
[328799187,1717801845106,-1007.02,0.000298,2]
[328799188,1717801845115,-313.98,0.000298,2]
[328799189,1717801845125,-313.98,0.000298,2]
[328799190,1717801845135,-150.0,0.000298,6]
[328799191,1717801845144,-150.0,0.000298,6]
[328799192,1717801845153,-155.0,0.00029801,2]
[328799193,1717801845163,-150.0,0.00029802,2]
[328799194,1717801845172,-162.24420402,0.00029807,2]
[328799195,1717801845182,-500.0,0.00029811,4]
[328799196,1717801845191,-151.0,0.00029812,7]
[328799197,1717801845201,-151.0,0.00029812,7]
[328799198,1717801845211,-233.579961,0.00029812,7]
[328799199,1717801845220,-151.0,0.00029812,7]
[328799200,1717801845230,-151.0,0.00029812,7]
[328799201,1717801845239,-151.0,0.00029812,7]
[328799202,1717801845249,-151.0,0.00029812,7]
[328799203,1717801845258,-151.0,0.00029812,7]
[328799204,1717801845268,-151.0,0.00029812,7]
[328799205,1717801845277,-151.0,0.00029812,7]
[328799206,1717801845287,-151.0,0.00029812,7]
[328799207,1717801845296,-151.0,0.00029812,7]
[328799208,1717801845306,-171.095771,0.00029812,7]
[328799209,1717801845316,-9047.04675397,0.00029812,2]
[328799210,1717801845326,-459.59723421,0.00029814,2]
[328799211,1717801845335,-150.0,0.00029821,2]
[328799212,1717801845344,-151.0,0.00029824,7]
[328799213,1717801845353,-151.0,0.00029824,7]
[328799214,1717801845363,-151.0,0.00029824,7]
[328799215,1717801845372,-151.0,0.00029824,7]
[328799216,1717801845382,-151.0,0.00029824,7]
[328799217,1717801845391,-3145.035347,0.00029824,7]
[328799218,1717801845400,-151.0,0.00029824,7]
[328799219,1717801845410,-3145.035347,0.00029824,7]
[328799220,1717801845419,-151.0,0.00029824,7]
[328799221,1717801845428,-151.0,0.00029824,7]
[328799222,1717801845438,-181.261286,0.00029824,7]
[328799223,1717801845447,-151.0,0.00029824,7]
[328799224,1717801845456,-151.0,0.00029824,7]
[328799225,1717801845466,-181.261286,0.00029824,7]
[328799226,1717801845475,-9047.04675397,0.00029825,2]
[328799227,1717801845484,-279.49705,0.00029825,7]
[328799228,1717801845494,-279.49705,0.00029825,7]
[328799229,1717801845503,-159.001682,0.00029825,7]
[328799230,1717801845512,-151.0,0.00029825,7]
[328799231,1717801845521,-151.0,0.00029825,7]
[328799232,1717801845532,-162.24420402,0.00029831,2]
[328799233,1717801845542,-6288.89845073,0.00029832,2]
[328799234,1717801845551,-767.388298,0.00029832,2]
[328799235,1717801845560,-151.0,0.00029832,7]
[328799236,1717801845570,-151.0,0.00029832,7]
[328799237,1717801845579,-151.0,0.00029832,7]
[328799238,1717801845588,-161.58093,0.00029832,7]
[328799239,1717801845598,-161.58093,0.00029832,7]
[328799240,1717801845611,-151.0,0.00029832,7]
[328799241,1717801845621,-151.0,0.00029832,7]
[328799242,1717801845631,-185.0,0.00029833,15]
[328799243,1717801845641,-450.0,0.00029833,15]
[328799244,1717801845651,-450.0,0.00029833,15]
[328799245,1717801845661,-185.0,0.00029833,15]